bitfinex/quotes_SOLUSD_20220129
["timestamp","ask_amount","ask_price","bid_price","bid_amount"]
[1643422414321,32.166,91.57,91.485,6.0]
[1643422415222,32.166,91.57,91.486,0.25]
[1643422415821,32.162,91.59,91.486,108.75]
[1643422416022,48.5282,91.649,91.496,6.0]
[1643422416225,15.77,91.64,91.5,15.77]
[1643422416422,15.77,91.64,91.505,108.5]
[1643422416622,15.77,91.64,91.515,6.0]
[1643422416824,15.77,91.64,91.516,0.25]
[1643422416825,35.71260922,91.639,91.516,0.25]
[1643422417223,2.95669142,91.638,91.516,0.25]
[1643422417424,2.95669142,91.638,91.516,24.9026]
[1643422417623,2.95669142,91.638,91.526,6.0]
[1643422417824,0.25,91.637,91.527,0.25]
[1643422418124,16.388,91.61,91.527,6.25]
[1643422418524,16.388,91.61,91.53,6.0]
[1643422418723,16.388,91.61,91.537,6.0]
[1643422418927,16.388,91.61,91.531,0.25]
[1643422422126,16.388,91.61,91.531,6.25]
[1643422425031,0.25,91.609,91.541,6.0]
[1643422425433,0.25,91.609,91.542,0.25]
[1643422426464,0.25,91.609,91.531,0.25]
[1643422428369,16.389,91.6,91.531,0.25]
[1643422428569,16.389,91.6,91.527,6.0]
[1643422428770,16.389,91.6,91.528,0.25]
[1643422429270,0.25,91.599,91.528,0.25]
[1643422430473,16.391,91.59,91.48,26.18595446]
[1643422430676,16.391,91.59,91.486,48.1213]
[1643422430974,49.95379142,91.589,91.49,6.0]
[1643422431173,49.95379142,91.589,91.486,48.1213]
[1643422431374,22.7906845,91.588,91.486,48.1213]
[1643422431574,22.7906845,91.588,91.45,16.35567227]
[1643422431773,22.7906845,91.587,91.45,16.35567227]
[1643422432176,2.95669142,91.586,91.45,16.35567227]
[1643422432473,16.398,91.56,91.45,16.35567227]
[1643422432673,36.68894212,91.559,91.441,78.0426]
[1643422432873,39.64563354,91.559,91.466,0.25]
[1643422433073,24.7858,91.558,91.451,6.0]
[1643422433475,16.401,91.54,91.451,6.0]
[1643422434776,16.401,91.54,91.452,0.25]
[1643422435776,0.25,91.539,91.452,0.25]
[1643422435977,16.404,91.52,91.452,0.25]
[1643422437879,0.25,91.519,91.452,0.25]
[1643422439379,0.25,91.519,91.452,6.25]
[1643422440781,16.404,91.52,91.452,6.25]
[1643422441780,43.14669308,91.557,91.452,6.25]
[1643422441981,23.3127,91.557,91.452,6.25]
[1643422442180,54.661,91.57,91.453,3.02059835]
[1643422442382,54.661,91.57,91.454,0.25]
[1643422442585,19.83399308,91.579,91.463,6.0]
[1643422442783,16.397,91.56,91.464,50.41769835]
[1643422442984,16.397,91.56,91.464,47.1471]
[1643422443183,2.95669142,91.559,91.465,0.25]
[1643422443585,24.4967,91.568,91.465,0.25]
[1643422443986,16.401,91.54,91.465,0.25]
[1643422444387,0.25,91.539,91.465,0.25]
[1643422446612,16.401,91.54,91.465,0.25]
[1643422446812,16.401,91.54,91.474,6.0]
[1643422447314,16.401,91.54,91.475,0.25]
[1643422447915,0.25,91.539,91.475,0.25]
[1643422449515,16.401,91.54,91.475,0.25]
[1643422449717,0.25,91.539,91.475,0.25]
[1643422451818,16.401,91.54,91.475,0.25]
[1643422452018,16.397,91.56,91.475,0.25]
[1643422452817,16.397,91.56,91.475,22.8352]
[1643422453021,16.397,91.56,91.485,6.0]
[1643422453218,0.25,91.559,91.485,6.0]
[1643422453418,0.25,91.559,91.486,6.25]
[1643422455823,19.83399308,91.588,91.486,6.25]
[1643422456021,15.77,91.61,91.488,108.5]
[1643422456222,15.77,91.61,91.487,27.78872687]
[1643422456223,15.77,91.65,91.501,173.73]
[1643422456421,15.77,91.65,91.5,15.77]
[1643422456422,46.9843,91.649,91.508,2.93006859]
[1643422456621,46.9843,91.649,91.52,15.77]
[1643422456825,36.03974605,91.648,91.521,108.75]
[1643422457022,38.99643747,91.648,91.531,6.0]
[1643422457222,15.77,91.64,91.531,6.0]
[1643422457421,16.388,91.62,91.532,0.25]
[1643422457622,39.32148357,91.619,91.532,6.25]
[1643422458225,39.32148357,91.619,91.533,24.9782]
[1643422458422,39.32148357,91.619,91.534,0.25]
[1643422458622,39.32148357,91.619,91.543,6.0]
[1643422458822,39.32148357,91.619,91.544,0.25]
[1643422459023,39.32148357,91.619,91.544,6.25]
[1643422459224,16.388,91.61,91.544,6.25]
[1643422463028,0.25,91.609,91.544,6.25]
[1643422463427,16.388,91.61,91.544,6.25]
[1643422463625,16.385,91.63,91.544,6.25]
[1643422463827,16.385,91.63,91.545,24.6893]
[1643422464024,15.77,91.65,91.555,6.0]
[1643422464224,24.7175,91.648,91.556,24.6893]
[1643422464425,42.04156917,91.647,91.556,24.9393]
[1643422464624,42.04156917,91.647,91.566,6.0]
[1643422464824,42.04156917,91.647,91.567,23.885]
[1643422465026,42.04156917,91.647,91.577,6.0]
[1643422465225,42.04156917,91.647,91.567,23.885]
[1643422465425,0.25,91.646,91.567,23.885]
[1643422467028,16.382,91.64,91.567,23.885]
[1643422468729,16.382,91.64,91.577,6.0]
[1643422468932,16.382,91.64,91.578,0.25]
[1643422469331,0.25,91.639,91.578,0.25]
[1643422469732,16.384,91.63,91.578,0.25]
[1643422470332,16.384,91.63,91.568,0.25]
[1643422470932,0.25,91.639,91.577,6.0]
[1643422471135,42.04156917,91.647,91.577,6.0]
[1643422471334,42.04156917,91.647,91.578,0.25]
[1643422472535,16.378,91.67,91.578,0.25]
[1643422472736,23.1337,91.669,91.578,47.1196]
[1643422473136,23.1337,91.669,91.588,6.0]
[1643422473337,23.1337,91.669,91.589,23.574]
[1643422473538,18.02843752,91.694,91.589,29.574]
[1643422473740,16.375,91.68,91.59,108.5]
[1643422473938,16.375,91.68,91.589,29.574]
[1643422474138,16.375,91.68,91.594,6.0]
[1643422474338,16.375,91.68,91.595,0.25]
[1643422474539,69.70440799,91.679,91.589,0.25]
[1643422474738,69.95440799,91.679,91.589,0.25]
[1643422474940,16.377,91.67,91.589,0.25]
[1643422475738,16.377,91.67,91.58,0.25]
[1643422475941,16.377,91.67,91.579,24.5361]
[1643422477342,16.377,91.67,91.58,0.25]
[1643422478149,16.374,91.69,91.589,6.0]
[1643422478372,16.374,91.69,91.59,16.02]
[1643422478572,16.374,91.69,91.6,6.0]
[1643422478772,16.374,91.69,91.601,24.2794]
[1643422479174,16.374,91.69,91.611,6.0]
[1643422479371,16.374,91.69,91.612,0.25]
[1643422480072,16.374,91.69,91.612,23.4038]
[1643422480571,16.374,91.69,91.622,6.0]
[1643422480773,16.374,91.69,91.623,0.25]
[1643422481172,16.374,91.69,91.622,6.0]
[1643422481580,2.92125122,91.754,91.622,6.0]
[1643422481581,16.371,91.71,91.622,6.0]
[1643422481773,70.33,91.74,91.622,6.0]
[1643422481972,70.33,91.74,91.623,2.88467486]
[1643422481973,54.56,91.74,91.623,2.88467486]
[1643422482172,48.5037,91.749,91.63,15.77]
[1643422482375,37.57949433,91.748,91.633,6.0]
[1643422482572,37.57949433,91.748,91.641,6.0]
[1643422482772,37.57949433,91.748,91.642,132.9001]
[1643422482773,40.53618575,91.748,91.642,132.9001]
[1643422482972,16.367,91.73,91.642,132.9001]
[1643422483174,16.367,91.73,91.652,6.0]
[1643422483373,0.25,91.729,91.653,0.25]
[1643422485677,0.25,91.729,91.653,6.25]
[1643422486379,0.25,91.729,91.653,0.25]
[1643422487677,16.367,91.73,91.653,0.25]
[1643422487879,48.5037,91.749,91.653,0.25]
[1643422488079,48.5037,91.749,91.653,25.1442]
[1643422488278,48.5037,91.749,91.653,133.6442]
[1643422488478,48.5037,91.749,91.663,6.0]
[1643422488679,113.7,91.792,91.663,6.0]
[1643422488680,2.95669142,91.778,91.671,65.23]
[1643422488884,113.7,91.827,91.673,65.23]
[1643422488885,32.123,91.82,91.673,65.23]
[1643422489082,45.9984,91.818,91.7,16.353]
[1643422489286,45.9984,91.818,91.701,23.2988]
[1643422489480,113.7,91.793,91.71,6.0]
[1643422489680,45.9984,91.818,91.711,30.763]
[1643422489883,40.85326228,91.794,91.712,0.25]
[1643422490080,40.85326228,91.794,91.712,6.25]
[1643422490282,40.85326228,91.794,91.712,0.25]
[1643422490480,45.9984,91.818,91.722,6.0]
[1643422490684,16.352,91.81,91.712,0.25]
[1643422490882,16.352,91.81,91.701,23.0488]
[1643422491086,113.7,91.786,91.68,15.77]
[1643422491285,113.7,91.786,91.67,15.77]
[1643422491286,47.156,91.785,91.67,15.77]
[1643422491483,15.77,91.78,91.645,24.041]
[1643422491785,16.363,91.76,91.65,32.133]
[1643422491981,22.8231,91.759,91.65,32.133]
[1643422492381,22.8231,91.759,91.651,0.25]
[1643422492582,22.8231,91.759,91.66,6.0]
[1643422492881,22.8231,91.759,91.661,23.1612]
[1643422493182,2.95669142,91.758,91.671,6.0]
[1643422493381,2.95669142,91.758,91.672,0.25]
[1643422493582,22.8231,91.759,91.672,0.25]
[1643422493983,2.95669142,91.77,91.672,24.0577]
[1643422494183,18.12015974,91.779,91.673,131.2758]
[1643422494387,18.12015974,91.779,91.682,6.0]
[1643422494586,18.12015974,91.779,91.683,28.869]
[1643422494786,18.12015974,91.779,91.684,0.25]
[1643422494983,0.25,91.778,91.684,0.25]
[1643422495184,0.25,91.778,91.684,108.75]
[1643422495384,0.25,91.778,91.684,0.25]
[1643422495986,16.36,91.77,91.684,0.25]
[1643422496482,16.36,91.77,91.691,108.5]
[1643422496885,16.36,91.77,91.701,6.0]
[1643422497285,0.25,91.778,91.702,0.25]
[1643422498285,0.25,91.778,91.694,23.6006]
[1643422498685,0.25,91.778,91.704,6.0]
[1643422498886,0.25,91.778,91.705,0.25]
[1643422499085,16.359,91.77,91.705,0.25]
[1643422499690,15.859,91.77,91.694,23.3506]
[1643422499887,15.859,91.77,91.705,0.25]
[1643422500289,15.859,91.77,91.673,22.7758]
[1643422500489,16.365,91.75,91.673,22.7758]
[1643422500689,16.365,91.75,91.658,23.0021]
[1643422500690,42.39520537,91.749,91.658,23.0021]
[1643422500892,68.73689679,91.749,91.658,23.0021]
[1643422501290,3.20669142,91.748,91.658,23.0021]
[1643422501690,0.25,91.748,91.659,0.25]
[1643422501889,16.365,91.74,91.659,0.25]
[1643422502490,2.95669142,91.739,91.659,0.25]
[1643422502692,2.95669142,91.739,91.65,6.0]
[1643422502895,2.95669142,91.739,91.651,0.25]
[1643422503095,23.3265,91.738,91.635,0.25]
[1643422503494,21.07685116,91.737,91.635,0.25]
[1643422503793,18.12015974,91.737,91.635,0.25]
[1643422503995,16.37,91.72,91.635,0.25]
[1643422504293,39.60000878,91.719,91.635,0.25]
[1643422504697,42.5567002,91.719,91.635,0.25]
[1643422504896,39.60000878,91.719,91.635,0.25]
[1643422505195,16.37,91.71,91.632,0.25]
[1643422506693,0.25,91.709,91.632,0.25]
[1643422508394,0.25,91.717,91.632,0.25]
[1643422509795,39.60000878,91.719,91.632,0.25]
[1643422509796,54.565,91.74,91.641,6.0]
[1643422509998,23.0112,91.739,91.642,47.7973]
[1643422510195,23.0112,91.739,91.642,48.0473]
[1643422510396,23.0112,91.739,91.652,6.0]
[1643422510397,16.367,91.73,91.652,6.0]
[1643422510795,16.367,91.73,91.653,0.25]
[1643422511898,16.367,91.73,91.622,0.25]
[1643422512122,16.367,91.73,91.622,6.25]
[1643422512297,0.25,91.729,91.623,24.7982]
[1643422512600,16.369,91.72,91.633,6.0]
[1643422512799,24.5777,91.719,91.634,22.9976]
[1643422513601,24.5777,91.719,91.644,6.0]
[1643422513802,24.5777,91.719,91.645,0.25]
[1643422517208,0.25,91.718,91.645,0.25]
[1643422517408,24.5777,91.719,91.645,0.25]
[1643422517608,0.25,91.718,91.645,0.25]
[1643422518311,24.5777,91.719,91.645,0.25]
[1643422519937,24.5777,91.719,91.645,6.25]
[1643422520139,24.5777,91.719,91.65,6.0]
[1643422520342,24.5777,91.719,91.651,0.25]
[1643422520540,24.5777,91.719,91.656,6.0]
[1643422520939,24.5777,91.719,91.657,0.25]
[1643422523145,16.365,91.74,91.657,0.25]
[1643422523345,24.8857,91.754,91.66,15.77]
[1643422523547,24.8857,91.754,91.67,6.0]
[1643422523747,24.8857,91.754,91.671,23.772]
[1643422523947,24.8857,91.754,91.671,30.022]
[1643422524148,24.8857,91.754,91.681,6.0]
[1643422524348,24.8857,91.754,91.682,0.25]
[1643422525553,24.8857,91.754,91.672,0.25]
[1643422527155,0.25,91.753,91.672,0.25]
[1643422527954,0.25,91.753,91.681,6.0]
[1643422528158,0.25,91.753,91.682,23.0161]
[1643422528355,0.25,91.753,91.682,23.2661]
[1643422529161,24.8857,91.754,91.682,23.2661]
[1643422530360,0.25,91.753,91.682,23.2661]
[1643422531180,16.365,91.75,91.682,23.0161]
[1643422531379,16.365,91.75,91.683,0.25]
[1643422532582,16.365,91.75,91.663,0.25]
[1643422532782,19.32169142,91.75,91.663,0.25]
[1643422532983,19.32169142,91.75,91.656,1.51498382]
[1643422532984,19.32169142,91.75,91.665,6.0]
[1643422533183,16.365,91.75,91.666,6.0]
[1643422533384,16.365,91.75,91.666,0.25]
[1643422533385,2.95669142,91.749,91.666,0.25]
[1643422533584,16.368,91.74,91.651,23.2818]
[1643422533784,22.8986,91.739,91.651,23.2818]
[1643422533983,22.8986,91.739,91.645,1.51498382]
[1643422534283,0.25,91.738,91.643,1.51498382]
[1643422534685,0.25,91.738,91.638,1.51498382]
[1643422534686,4.70823609,91.738,91.638,1.51498382]
[1643422534889,3.20669142,91.738,91.642,0.25]
[1643422535185,16.37,91.73,91.642,0.25]
[1643422535387,33.89567659,91.729,91.639,1.51498382]
[1643422535587,38.35391268,91.729,91.628,1.51498382]
[1643422535788,1.50154467,91.724,91.624,25.44128382]
[1643422535990,1.50154467,91.722,91.624,23.9263]
[1643422536389,1.50154467,91.721,91.624,23.9263]
[1643422536588,4.45823609,91.721,91.624,23.9263]
[1643422536788,1.50154467,91.719,91.624,23.9263]
[1643422537188,16.371,91.72,91.624,23.9263]
[1643422537389,24.1186,91.719,91.625,23.7009]
[1643422538794,27.07529142,91.719,91.625,23.7009]
[1643422539091,16.373,91.71,91.625,23.7009]
[1643422539892,23.272,91.709,91.625,23.7009]
[1643422541299,0.25,91.708,91.625,23.7009]
[1643422541698,0.25,91.708,91.625,0.25]
[1643422542296,0.25,91.708,91.625,23.3799]
[1643422543297,24.1186,91.719,91.636,108.5]
[1643422543498,24.1186,91.719,91.637,23.709]
[1643422543803,24.1186,91.719,91.647,108.5]
[1643422544001,24.1186,91.719,91.647,6.0]
[1643422544202,16.366,91.75,91.648,0.25]
[1643422544398,23.0565,91.749,91.65,15.77]
[1643422544599,23.0565,91.749,91.661,108.5]
[1643422544799,23.0565,91.749,91.66,6.0]
[1643422544800,23.0565,91.749,91.663,108.5]
[1643422545000,23.0565,91.749,91.673,6.0]
[1643422545200,23.0565,91.749,91.674,22.8196]
[1643422545400,23.0565,91.749,91.675,108.5]
[1643422545800,23.0565,91.749,91.676,0.25]
[1643422546200,1.50154467,91.765,91.676,0.25]
[1643422546403,1.50154467,91.766,91.685,6.0]
[1643422546604,1.50154467,91.768,91.686,24.6061]
[1643422546801,46.33243459,91.767,91.687,0.25]
[1643422547201,1.50154467,91.766,91.687,0.25]
[1643422547702,24.6729,91.765,91.687,0.25]
[1643422548102,16.364,91.76,91.687,0.25]
[1643422549701,24.6729,91.765,91.687,0.25]
[1643422550505,0.25,91.764,91.687,0.25]
[1643422551507,0.25,91.764,91.696,6.0]
[1643422551906,0.25,91.764,91.697,6.25]
[1643422552308,33.68193717,91.764,91.697,6.25]
[1643422552507,0.25,91.764,91.697,6.25]
[1643422553509,24.6729,91.765,91.697,6.25]
[1643422554507,1.50154467,91.776,91.697,6.25]
[1643422554709,1.50154467,91.776,91.697,108.75]
[1643422554907,43.2713292,91.782,91.697,108.75]
[1643422554908,1.50154467,91.78,91.708,108.5]
[1643422555108,43.2713292,91.782,91.71,108.5]
[1643422555408,0.25,91.781,91.711,0.25]
[1643422555609,0.25,91.781,91.72,6.0]
[1643422555809,17.86054467,91.79,91.721,0.25]
[1643422556009,0.25,91.785,91.721,0.25]
[1643422556209,16.359,91.79,91.721,0.25]
[1643422557610,33.2979787,91.791,91.721,0.25]
[1643422557813,33.2979787,91.791,91.72,6.0]
[1643422558012,33.2979787,91.791,91.71,108.5]
[1643422558816,0.25,91.79,91.71,108.5]
[1643422559114,3.20669142,91.79,91.71,108.5]
[1643422559315,2.95669142,91.789,91.711,0.25]
[1643422559713,0.25,91.79,91.711,0.25]
[1643422560117,0.25,91.79,91.72,6.0]
[1643422560316,0.25,91.79,91.721,0.25]
[1643422562117,0.25,91.79,91.72,6.0]
[1643422562319,0.25,91.79,91.721,0.25]
[1643422563520,0.25,91.79,91.71,0.25]
[1643422564937,0.25,91.79,91.719,6.0]
[1643422565340,19.56469142,91.79,91.72,0.25]
[1643422565539,19.56469142,91.79,91.693,24.6421]
[1643422567043,37.95424005,91.79,91.703,6.0]
[1643422568341,37.95424005,91.79,91.704,0.25]
[1643422570441,37.95424005,91.79,91.704,24.2411]
[1643422570642,37.95424005,91.79,91.714,6.0]
[1643422570843,37.95424005,91.79,91.715,0.25]
[1643422571044,37.70424005,91.79,91.715,0.25]
[1643422571641,34.74754863,91.79,91.715,0.25]
[1643422572042,34.74754863,91.79,91.715,25.1805]
[1643422572345,18.38954863,91.79,91.715,25.1805]
[1643422572543,18.38954863,91.79,91.725,6.0]
[1643422572943,18.38954863,91.79,91.726,0.25]
[1643422574144,18.38954863,91.79,91.716,0.25]
[1643422574643,18.38954863,91.79,91.715,24.9305]
[1643422574845,0.25,91.789,91.715,24.9305]
[1643422575045,0.25,91.789,91.725,6.0]
[1643422576145,0.25,91.789,91.726,0.25]
[1643422576744,0.25,91.789,91.716,0.25]
[1643422577546,18.38954863,91.79,91.716,0.25]
[1643422578949,0.25,91.789,91.716,0.25]
[1643422581951,1.75154467,91.789,91.716,0.25]
[1643422582353,1.50154467,91.785,91.716,0.25]
[1643422583755,1.50154467,91.784,91.716,0.25]
[1643422584355,1.50154467,91.784,91.725,6.0]
[1643422584556,1.50154467,91.785,91.725,6.0]
[1643422584756,1.50154467,91.785,91.726,0.25]
[1643422585457,1.50154467,91.784,91.726,0.25]
[1643422585656,1.50154467,91.783,91.726,0.25]
[1643422586058,1.50154467,91.783,91.716,0.25]
[1643422586257,1.75154467,91.782,91.716,0.25]
[1643422586858,1.50154467,91.781,91.716,0.25]
[1643422587462,1.50154467,91.781,91.725,6.0]
[1643422587860,1.75154467,91.782,91.726,0.25]
[1643422589061,0.25,91.782,91.726,0.25]
[1643422589462,0.25,91.782,91.715,24.9305]
[1643422589463,1.75154467,91.782,91.716,0.25]
[1643422589663,0.25,91.782,91.715,24.9305]
[1643422589862,1.50154467,91.785,91.715,24.9305]
[1643422589863,1.50154467,91.783,91.715,24.9305]
[1643422590262,16.36,91.78,91.715,24.9305]
[1643422590468,1.50154467,91.779,91.715,24.9305]
[1643422590663,1.50154467,91.777,91.692,1.51498382]
[1643422591063,23.3968,91.778,91.692,1.51498382]
[1643422591064,1.50154467,91.757,91.692,1.51498382]
[1643422591265,1.50154467,91.757,91.672,1.51498382]
[1643422591266,16.368,91.74,91.672,1.51498382]
[1643422591467,15.77,91.73,91.626,2.93006859]
[1643422591865,197.08,91.72,91.61,427.17320655]
[1643422592065,15.77,91.71,91.61,427.17320655]
[1643422592265,16.38,91.68,91.61,427.17320655]
[1643422592568,33.40388,91.679,91.578,2.93006859]
[1643422592863,33.40388,91.679,91.57,47.9017]
[1643422592864,36.36057142,91.679,91.589,6.0]
[1643422593066,36.36057142,91.679,91.58,6.0]
[1643422593464,0.25,91.678,91.58,6.0]
[1643422593867,0.25,91.678,91.581,0.25]
[1643422594066,16.38,91.66,91.581,0.25]
[1643422597373,0.25,91.659,91.581,0.25]
[1643422598994,0.25,91.659,91.581,6.25]
[1643422599201,16.38,91.66,91.581,6.0]
[1643422599394,16.38,91.66,91.582,0.25]
[1643422600197,16.38,91.66,91.58,6.0]
[1643422600596,21.34522894,91.659,91.536,48.5173]
[1643422600798,16.385,91.63,91.536,48.5173]
[1643422600996,39.86320132,91.629,91.536,48.5173]
[1643422601199,21.59522894,91.658,91.536,48.5173]
[1643422601396,18.38853752,91.657,91.536,48.5173]
[1643422601599,21.34522894,91.657,91.536,48.5173]
[1643422601801,21.34522894,91.657,91.537,0.25]
[1643422601999,21.34522894,91.657,91.546,6.0]
[1643422602202,64.43615546,91.656,91.546,6.0]
[1643422602400,64.43615546,91.656,91.547,0.25]
[1643422602600,18.38853752,91.655,91.547,0.25]
[1643422603003,16.382,91.65,91.547,0.25]
[1643422603400,16.382,91.65,91.55,6.0]
[1643422603702,16.382,91.65,91.551,6.0]
[1643422603900,16.382,91.65,91.552,0.25]
[1643422604601,49.4738,91.659,91.553,2.8730616]
[1643422604801,18.38853752,91.674,91.554,0.25]
[1643422605002,18.38853752,91.696,91.564,65.23]
[1643422605304,18.38853752,91.696,91.571,65.23]
[1643422605504,18.38853752,91.696,91.57,15.77]
[1643422605505,18.38853752,91.696,91.581,6.0]
[1643422605707,41.7442705,91.695,91.591,65.23]
[1643422605914,41.7442705,91.695,91.6,16.372]
[1643422606114,41.7442705,91.695,91.61,6.0]
[1643422606318,41.7442705,91.695,91.611,0.25]
[1643422606612,41.7442705,91.695,91.611,6.25]
[1643422607212,16.374,91.69,91.611,0.25]
[1643422607815,16.374,91.69,91.603,0.25]
[1643422608614,16.374,91.69,91.604,108.5]
[1643422608815,16.374,91.69,91.605,0.25]
[1643422609016,16.371,91.71,91.614,6.0]
[1643422609414,19.32769142,91.71,91.615,0.25]
[1643422609642,38.58542591,91.709,91.615,6.25]
[1643422610317,0.25,91.708,91.615,6.25]
[1643422610519,41.54211733,91.709,91.615,6.25]
[1643422611518,41.54211733,91.709,91.62,6.0]
[1643422611718,16.373,91.7,91.62,6.0]
[1643422611919,16.373,91.7,91.625,6.0]
[1643422612120,16.373,91.7,91.621,0.25]
[1643422614722,2.95669142,91.699,91.621,0.25]
[1643422614921,16.373,91.7,91.621,0.25]
[1643422615320,16.373,91.7,91.615,6.0]
[1643422615321,16.373,91.7,91.616,0.25]
[1643422616123,2.95669142,91.699,91.616,0.25]
[1643422616522,32.143,91.7,91.616,0.25]
[1643422616724,32.143,91.7,91.615,6.0]
[1643422617422,35.09969142,91.7,91.615,6.0]
[1643422617825,32.143,91.7,91.615,6.0]
[1643422618024,32.143,91.7,91.616,0.25]
[1643422618625,2.95669142,91.699,91.616,0.25]
[1643422618825,16.375,91.69,91.616,0.25]
[1643422619626,3.20669142,91.689,91.58,16.376]
[1643422619827,3.20669142,91.689,91.561,2.93006859]
[1643422619828,43.75836419,91.679,91.561,2.93006859]
[1643422620228,21.34522894,91.678,91.564,5.80275454]
[1643422620429,21.34522894,91.678,91.564,2.87268595]
[1643422620630,18.38853752,91.677,91.565,3.02655092]
[1643422621128,16.379,91.66,91.575,6.0]
[1643422621329,16.379,91.66,91.576,0.25]
[1643422621330,40.669,91.66,91.576,0.25]
[1643422621530,40.669,91.66,91.573,6.0]
[1643422621729,40.669,91.66,91.574,0.25]
[1643422622533,27.38899142,91.659,91.574,0.25]
[1643422622732,16.382,91.65,91.574,0.25]
[1643422622934,43.03857484,91.639,91.564,0.25]
[1643422623233,43.03857484,91.639,91.563,46.7079]
[1643422623438,0.25,91.638,91.563,46.7079]
[1643422624334,0.25,91.638,91.564,0.25]
[1643422624534,0.25,91.638,91.551,2.93006859]
[1643422624763,2.95669142,91.637,91.537,2.93006859]
[1643422625162,18.38853752,91.636,91.537,2.93006859]
[1643422625364,18.38853752,91.636,91.532,2.93006859]
[1643422625564,16.385,91.63,91.532,2.93006859]
[1643422625763,32.155,91.63,91.533,0.25]
[1643422625965,32.155,91.63,91.534,3.02693574]
[1643422626165,32.155,91.63,91.54,6.0]
[1643422626363,32.155,91.63,91.541,3.27693574]
[1643422626563,32.155,91.63,91.544,6.0]
[1643422626763,32.155,91.63,91.551,6.0]
[1643422627364,32.155,91.63,91.541,6.0]
[1643422627765,32.155,91.63,91.542,0.25]
[1643422628272,32.155,91.63,91.543,3.02372519]
[1643422628665,32.155,91.63,91.553,6.0]
[1643422628868,32.155,91.63,91.554,0.25]
[1643422629065,32.155,91.63,91.554,6.25]
[1643422631267,32.155,91.63,91.554,6.0]
[1643422632868,32.155,91.63,91.555,0.25]
[1643422634869,0.25,91.629,91.555,0.25]
[1643422635269,16.387,91.62,91.555,0.25]
[1643422635470,32.157,91.62,91.555,0.25]
[1643422638272,0.25,91.619,91.555,0.25]
[1643422639073,16.389,91.61,91.555,0.25]
[1643422639273,45.50545422,91.609,91.555,0.25]
[1643422640976,16.386,91.63,91.555,0.25]
[1643422641175,54.61,91.66,91.555,0.25]
[1643422641378,23.3652,91.659,91.556,2.87268595]
[1643422641575,23.3652,91.659,91.566,6.0]
[1643422641775,35.52987276,91.658,91.567,24.4037]
[1643422642076,35.52987276,91.658,91.577,6.0]
[1643422642276,35.52987276,91.658,91.578,0.25]
[1643422642677,35.52987276,91.658,91.578,6.25]
[1643422642876,35.52987276,91.658,91.578,30.0728]